fUST/lending_fUST_20251015
["ID","MTS","AMOUNT","RATE_DAILY","PERIOD"]
[391323918,1760527838111,-4491.294492,0.00023,2]
[391323919,1760527838123,-2669.09631646,0.00023,2]
[391323921,1760527838255,-1375.39462799,0.00023,2]
[391323947,1760527840220,-2954.36702597,0.00023,2]
[391323949,1760527840231,-150.0,0.00023,2]
[391323951,1760527840240,-503.65409432,0.000232,2]
[391323953,1760527840249,-172.5,0.000236,2]
[391323956,1760527840259,-168.3,0.00024011,2]
[391323958,1760527840269,-195.0,0.000242,2]
[391323960,1760527840279,-217.5,0.000248,2]
[391323962,1760527840289,-420.0,0.00024967,2]
[391323964,1760527840299,-336.61,0.00025154,2]
[391323966,1760527840309,-637.95349038,0.00025239,2]
[391323967,1760527840319,-624.7976635,0.00025737,2]
[391323969,1760527840330,-243.30233383,0.00025862,2]
[391323973,1760527840342,-430.60097659,0.00025862,2]
[391323975,1760527840352,-453.78,0.0002587,10]
[391323977,1760527840363,-277.68111062,0.00025879,2]
[391323979,1760527840373,-181.628734,0.00025879,2]
[391323980,1760527840382,-180.0,0.00025879,2]
[391323982,1760527840392,-193.2502857,0.00025879,2]
[391323985,1760527840403,-194.37677743,0.00025879,2]
[391323986,1760527840413,-101.44211566,0.0002588,2]
[391324022,1760527844099,-378.15,0.0002587,10]
[391324023,1760527844109,-201.15128623,0.0002588,2]
[391324024,1760527844153,-7271.71197445,0.0002588,2]
[391324067,1760527846141,-199604.38497866,0.0002588,2]
[391324069,1760527846151,-316.75264392,0.0002588,2]
[391324071,1760527846160,-500.0,0.00025889,2]
[391324074,1760527846170,-210378.86218132,0.0002589,2]
[391324077,1760527846196,-888.0993389,0.0002589,2]
[391324171,1760528040084,500.0,0.00030467,60]
[391324172,1760528040339,466.5117689,0.00030467,60]
[391324227,1760528238261,4436.78427639,0.00018905,2]
[391324292,1760528449770,5000.0,0.00018905,2]
[391324333,1760528585459,500.30876859,0.00030461,60]
[391324358,1760528665970,259.146045,0.00013699,2]
[391324373,1760528729174,1500000.0,0.00030461,30]
[391324384,1760528756087,-150.0,0.00019146,2]
[391324385,1760528756108,-171.70117152,0.00019422,2]
[391324411,1760528827141,-166.88191379,0.00019746,2]
[391324412,1760528827161,-101.00362508,0.00020087,2]
[391324441,1760528945153,-68.18856434,0.00020087,2]
[391324442,1760528945180,-236.89871564,0.00020187,2]
[391324445,1760528965094,-201.83,0.00019509,2]
[391324446,1760528965114,-22.24732936,0.00020187,2]
[391324447,1760528965135,-403.67,0.00020438,2]
[391324448,1760528965155,-605.5,0.00021367,2]
[391324449,1760528965173,-312.86868819,0.00021819,2]
[391324487,1760529032270,-464.30162959,0.00021819,2]
[391324488,1760529032280,-150.0,0.00021819,2]
[391324489,1760529032289,-807.33,0.00022296,2]
[391324490,1760529032299,-172.5,0.00022419,2]
[391324491,1760529032308,-205.25250619,0.000229,2]
[391324492,1760529032317,-195.0,0.00023019,2]
[391324493,1760529032326,-1009.17,0.00023225,2]
[391324494,1760529032335,-217.5,0.00023619,2]
[391324495,1760529032345,-1305.1333892,0.00023756,2]
[391324496,1760529032358,-1211.0,0.00024154,2]
[391324497,1760529032367,-240.0,0.00024219,2]
[391324498,1760529032376,-1412.83,0.00025083,2]
[391324499,1760529032385,-864.0,0.00025203,2]
[391324500,1760529032395,-300.0,0.00025663,2]
[391324501,1760529032404,-8171.18775787,0.00025664,2]
[391324502,1760529032415,-31499.92945944,0.00025664,2]
[391324503,1760529032425,-19657.21882829,0.00025664,2]
[391324504,1760529032435,-5245.8291336,0.00025695,2]
[391324505,1760529032444,-482.54,0.0002577,3]
[391324506,1760529032453,-241.27,0.0002577,3]
[391324507,1760529032462,-723.82,0.0002577,3]
[391324508,1760529032471,-183.66,0.0002577,10]
[391324509,1760529032480,-284.52,0.0002577,10]
[391324510,1760529032489,-237.1,0.0002577,10]
[391324511,1760529032498,-500.0,0.00025779,2]
[391324512,1760529032507,-500.0,0.00025779,2]
[391324513,1760529032516,-227.09,0.0002578,11]
[391324514,1760529032525,-10900.91424451,0.0002578,2]
[391324515,1760529032536,-5705.10399937,0.0002578,2]
[391324528,1760529038318,-30000.0,0.0002578,2]
[391324529,1760529038442,-29.76505987,0.0002578,2]
[391324530,1760529038454,-455.70417096,0.0002578,2]
[391324533,1760529040320,-150.0,0.0001936,2]
[391324534,1760529040330,-279.67,0.00020282,2]
[391324535,1760529040339,-179.97864225,0.0002578,2]
[391324536,1760529040350,-567.41619488,0.0002578,2]
[391324689,1760529132905,261491.16602336,0.00030461,30]
[391324715,1760529741361,174.0615116,0.00018905,2]
[391324716,1760529786011,2400.82910816,0.00018905,2]
[391324717,1760529794072,600.3542403,0.00018905,2]
[391324719,1760529943219,-200.0,0.00019206,2]
[391324720,1760529943240,-150.0,0.00019206,2]
[391324721,1760529943259,-500.0,0.000193,2]
[391324722,1760529943281,-178.75,0.00019399,2]
[391324723,1760529943300,-1114.355932,0.00019497,2]
[391324724,1760529943320,-172.5,0.00019806,2]
[391324725,1760529943339,-314.31057084,0.00020087,2]
[391324726,1760529943357,-205.25250619,0.00020087,2]
[391324727,1760529943377,-357.51,0.00020322,2]
[391324728,1760529943397,-249.97101599,0.00020406,2]
[391324729,1760529943416,-229.46277225,0.00021178,2]
[391324757,1760530033098,-171.93,0.00019491,2]
[391324758,1760530033118,-343.86,0.00020419,2]
[391324759,1760530033141,-970.53722775,0.00021178,2]
[391324760,1760530033162,-176.06570126,0.00021179,2]
[391324761,1760530149095,-165.37,0.00019359,2]
[391324762,1760530149120,-330.73,0.00020281,2]
[391324763,1760530149143,-123.93429874,0.00021179,2]
[391324764,1760530149164,-300.0,0.00021179,2]
[391324765,1760530149183,-300.0,0.00021179,2]
[391324766,1760530149203,-300.0,0.00021179,2]
[391324767,1760530149223,-195.0,0.00021179,2]
[391324768,1760530149250,-496.1,0.00021202,2]
[391324769,1760530149270,-174.86291827,0.00021248,2]
[391324770,1760530149293,-591.17061971,0.00022124,2]
[391324787,1760530232590,-150.0,0.00023971,2]
[391324789,1760530232600,-300.0,0.00024176,2]
[391324791,1760530232609,-327.0,0.00024176,2]
[391324792,1760530232620,-202.317533,0.00024177,2]
[391324794,1760530232630,-50000.0,0.00024177,2]
[391324796,1760530232639,-290.43,0.00025113,2]
[391324798,1760530232648,-449.2688736,0.00025633,2]
[391324800,1760530232657,-4196.66330688,0.00025633,2]
[391324802,1760530232666,-241.27,0.0002566,3]
[391324804,1760530232675,-723.81,0.0002566,3]
[391324806,1760530232684,-197.58,0.0002566,10]
[391324808,1760530232693,-164.65,0.0002566,10]
[391324811,1760530232702,-823.27,0.0002566,10]
[391324814,1760530232711,-34092.30863429,0.0002567,2]
[391324817,1760530232723,-1559.12554849,0.0002567,2]
[391324819,1760530232733,-1335.13735634,0.0002567,2]
[391324822,1760530232746,-835.38693115,0.0002567,2]
[391324825,1760530232757,-487.43371295,0.0002567,2]
[391324828,1760530232768,-105649.86025378,0.0002567,2]
[391324848,1760530232908,-151.0,0.0002568,7]
[391324850,1760530232918,-151.0,0.0002568,7]
[391324852,1760530232927,-151.0,0.0002568,7]
[391324854,1760530232936,-151.0,0.0002568,7]
[391324856,1760530232946,-151.0,0.0002568,7]
[391324858,1760530232955,-151.0,0.0002568,7]
[391324860,1760530232965,-151.0,0.0002568,7]
[391324862,1760530232974,-5143.13974622,0.0002568,2]
[391324901,1760530238581,-151.0,0.0002568,7]
[391324902,1760530238591,-155.017431,0.0002568,7]
[391324903,1760530238600,-515.55338804,0.0002568,2]
[391324904,1760530238635,-5870.47098584,0.0002568,2]
[391324905,1760530238645,-8276.49557963,0.0002568,2]
[391324937,1760530240656,-75715.68722031,0.0002568,2]
[391324940,1760530240668,-123079.35914194,0.0002568,2]
[391324945,1760530240713,-15277.19554457,0.0002568,2]
[391325060,1760530246566,-150.0,0.00025205,2]
[391325061,1760530246575,-1935.58425619,0.0002568,2]
[391325062,1760530246586,-4976.57234121,0.0002568,2]
[391325085,1760531151127,-150.0,0.00019324,2]
[391325086,1760531151148,-150.0,0.00019372,2]
[391325087,1760531151167,-500.0,0.000194,2]
[391325088,1760531151185,-327.65413054,0.00019509,2]
[391325091,1760531228201,-150.0,0.00019353,2]
[391325092,1760531228222,-16.2392929,0.00019509,2]
[391325101,1760531291904,420.39440419,0.00010618,2]
[391325102,1760531293919,11527.11805578,0.000125,2]
[391325116,1760531362115,-166.89,0.00019277,2]
[391325117,1760531362134,-937.46581796,0.00019509,2]
[391325118,1760531362158,-500.0,0.000196,2]
[391325119,1760531362178,-172.5,0.00019924,2]
[391325120,1760531362199,-333.79,0.00020195,2]
[391325121,1760531362220,-195.0,0.00020524,2]
[391325122,1760531362245,-500.68,0.00021113,2]
[391325123,1760531362411,-217.5,0.00021124,2]
[391325124,1760531362434,-240.0,0.00021724,2]
[391325125,1760531362455,-357.5482819,0.00022,2]
[391325126,1760531362478,-667.57,0.00022031,2]
[391325127,1760531362505,-41.92341726,0.00022324,2]
[391325200,1760531431702,-150.0,0.00019316,2]
[391325202,1760531431711,-200.0,0.00019316,2]
[391325204,1760531431719,-291.3,0.00020236,2]
[391325206,1760531431727,-436.96,0.00021155,2]
[391325208,1760531431740,-582.61,0.00022075,2]
[391325210,1760531431751,-109.80525025,0.00022324,2]
[391325213,1760531431760,-78.53434075,0.00022995,2]
[391325217,1760531431771,-649.72565925,0.00022995,2]
[391325220,1760531431782,-300.0,0.00022999,2]
[391325223,1760531431798,-300.0,0.00022999,2]
[391325226,1760531431807,-300.0,0.00022999,2]
[391325230,1760531431816,-300.0,0.00022999,2]
[391325232,1760531431826,-300.0,0.00022999,2]
[391325235,1760531431836,-1200.0,0.00022999,2]
[391325237,1760531431846,-160.0,0.00023,2]
[391325239,1760531431855,-5752.0,0.00023,2]
[391325241,1760531431864,-126.24958041,0.00023915,2]
[391325243,1760531431881,-747.66041959,0.00023915,2]
[391325245,1760531431890,-1019.57,0.00024835,2]
[391325247,1760531431900,-420.0,0.00024967,2]
[391325249,1760531431909,-531.94798099,0.00025113,2]
[391325251,1760531431918,-1200.0,0.00025459,2]
[391325253,1760531431927,-12720.1711811,0.00025463,2]
[391325254,1760531431936,-3073.6728155,0.00025463,2]
[391325255,1760531431945,-3357.33064552,0.00025523,2]
[391325256,1760531431955,-662.427304,0.00025565,2]
[391325258,1760531431964,-1637.16256376,0.00025565,2]
[391325259,1760531431973,-301.94445769,0.00025565,2]
[391325261,1760531431983,-482.54,0.0002557,3]
[391325262,1760531431992,-75578.607529,0.0002557,2]
[391325263,1760531432001,-201116.96696256,0.0002558,2]
[391325283,1760531437605,-1100.41937275,0.0002558,2]
[391325284,1760531437616,-1125.83816974,0.0002558,2]
[391325285,1760531437627,-2224.86482714,0.0002558,2]
[391325286,1760531437638,-3402.9849802,0.0002558,2]
[391325287,1760531437649,-2658.67601018,0.0002558,2]
[391325292,1760531439683,-2678.4,0.0002558,2]
[391325294,1760531439695,-359.84300527,0.0002558,2]
[391325295,1760531439744,-4041.94705111,0.0002558,2]
[391325297,1760531439755,-424.76290186,0.0002558,2]
[391325298,1760531439766,-554.28474495,0.0002558,2]
[391325321,1760531442719,-801.77446046,0.0002558,2]
[391325325,1760531445717,-10824.33484446,0.0002558,2]
[391325326,1760531445778,-1227.45,0.0002558,2]
[391325342,1760531619583,260.929918,0.00013699,2]
[391325347,1760531747915,653.9127325,0.00018905,2]
[391325359,1760531883559,151.12,0.00015135,2]
[391325360,1760531900706,243.11366369,0.0002849,120]
[391325361,1760531999633,150.0,0.000201,60]
[391325362,1760532010439,-195.0,0.00019326,2]
[391325363,1760532010464,-260.929918,0.00020187,2]
[391325364,1760532010489,-155.31715807,0.00023947,2]
[391325365,1760532010513,-300.0,0.00024012,2]
[391325366,1760532010538,-300.0,0.00024012,2]
[391325367,1760532010562,-300.0,0.00024012,2]
[391325368,1760532010592,-300.0,0.00024012,2]
[391325369,1760532015479,174.79,0.00023973,2]
[391325370,1760532035644,-6213.96292393,0.00024013,2]
[391325383,1760532219467,155.0,0.00028493,120]
[391325388,1760532259104,9989.99,0.00028493,120]
[391325415,1760532442132,-172.57,0.00019387,2]
[391325416,1760532442154,-345.14,0.00020311,2]
[391325417,1760532442173,-517.71,0.00021234,2]
[391325418,1760532442192,-684.93443502,0.00022157,2]
[391325430,1760532534009,10000.0,0.00028493,120]
[391325432,1760532547116,-166.09,0.00019405,2]
[391325433,1760532547137,-332.17,0.00020329,2]
[391325434,1760532547156,-498.26,0.00021253,2]
[391325435,1760532547177,-592.4689834,0.00022177,2]
[391325515,1760532631905,-150.0,0.00019434,2]
[391325517,1760532631915,-291.73,0.00020359,2]
[391325519,1760532631925,-437.59,0.00021284,2]
[391325521,1760532631934,-583.45,0.0002221,2]
[391325523,1760532631943,-1056.532777,0.00023024,2]
[391325525,1760532631952,-729.32,0.00023135,2]
[391325527,1760532631962,-154.96770746,0.0002384,2]
[391325529,1760532631971,-376.76897619,0.0002394,2]
[391325531,1760532631980,-300.0,0.00024012,2]
[391325533,1760532631990,-30717.75337327,0.00024013,2]
[391325535,1760532631999,-150.0,0.00024013,2]
[391325538,1760532632008,-3584.656876,0.00024047,2]
[391325541,1760532632017,-875.18,0.00024061,2]
[391325543,1760532632026,-150.185,0.0002497,8]
[391325545,1760532632035,-1021.04,0.00024986,2]
[391325547,1760532632043,-375.11275481,0.00025,3]
[391325549,1760532632055,-391.4229224,0.00025,2]
[391325551,1760532632064,-398.96098575,0.00025006,2]
[391325553,1760532632073,-175.3367159,0.00025438,2]
[391325555,1760532632083,-5696.9689982,0.00025448,2]
[391325556,1760532632092,-2685.8645164,0.00025461,2]
[391325558,1760532632101,-662.427304,0.00025465,2]
[391325560,1760532632110,-299.5125824,0.00025465,2]
[391325563,1760532632120,-19829.32137471,0.0002547,2]
[391325565,1760532632131,-1052.41666026,0.0002547,2]
[391325666,1760532640115,-106.85608391,0.0002547,2]
[391325721,1760532642941,-28137.50077502,0.0002547,2]
[391325723,1760532642951,-3151.87984968,0.0002547,2]
[391325725,1760532642961,-4167.438666,0.0002548,7]
[391325727,1760532642970,-4167.438666,0.0002548,7]
[391325729,1760532642979,-4167.438666,0.0002548,7]
[391325731,1760532642988,-4167.438666,0.0002548,7]
[391325733,1760532642998,-151.0,0.0002548,7]
[391325735,1760532643007,-74775.06869328,0.0002548,2]
[391325762,1760532645959,-299.22073931,0.00025006,2]
[391325763,1760532645969,-295224.93130672,0.0002548,2]
[391325764,1760532645979,-7018.01355627,0.0002556,2]
[391325765,1760532645988,-1000.02139475,0.00025577,3]
[391325766,1760532645997,-160.0,0.0002565,2]
[391325767,1760532646007,-300.0,0.000258,2]
[391325768,1760532646015,-1166.91,0.00025912,2]
[391325769,1760532646025,-352.64,0.00025917,2]
[391325770,1760532646034,-686.93711425,0.00026013,2]
[391325771,1760532646043,-393.98498121,0.00026017,2]
[391325772,1760532646053,-2999.0,0.00026027,2]
[391325773,1760532646061,-420.0,0.0002604,2]
[391325774,1760532646070,-260.0,0.00026198,2]
[391325775,1760532646079,-300.0,0.00026396,30]
[391325776,1760532646089,-300.0,0.00026396,30]
[391325777,1760532646098,-300.0,0.00026396,30]
[391325778,1760532646107,-981.0,0.00026543,2]
[391325779,1760532646116,-631.0,0.00026543,2]
[391325780,1760532646125,-2161.0,0.00026543,2]
[391325781,1760532646135,-411.0,0.00026543,2]
[391325782,1760532646143,-712.35378748,0.00026561,2]
[391325783,1760532646152,-278.42745153,0.000266,2]
[391325784,1760532646264,-260.929918,0.00026676,2]
[391325785,1760532646277,-400.0,0.00026683,2]
[391325786,1760532646286,-402.51317252,0.00026683,2]
[391325787,1760532646295,-2685.8645164,0.00026683,2]
[391325788,1760532646304,-271.28447895,0.000267,2]
[391325789,1760532646313,-520.0,0.00026746,2]
[391325790,1760532646322,-1312.77,0.00026837,2]
[391325791,1760532646332,-501.24957147,0.0002685,2]
[391325792,1760532646340,-500.0,0.0002685,2]
[391325793,1760532646350,-9616.03,0.000269,7]
[391325794,1760532646359,-278.42745153,0.000269,2]
[391325795,1760532646368,-151.0,0.000269,7]
[391325796,1760532646377,-1167.85644145,0.00027,2]
[391325797,1760532646386,-200.09821265,0.00027,2]
[391325798,1760532646396,-500.0,0.00027096,2]
[391325799,1760532646405,-501.79967745,0.00027096,2]
[391325800,1760532646414,-500.51536952,0.00027096,2]
[391325801,1760532646423,-278.42745153,0.000271,2]
[391325802,1760532646432,-738.71087761,0.00027109,2]
[391325803,1760532646441,-501.17934736,0.00027216,2]
[391325804,1760532646450,-500.0,0.00027262,2]
[391325805,1760532646460,-7018.01355627,0.00027367,2]
[391325806,1760532646469,-4167.438666,0.00027367,7]
[391325807,1760532646478,-4167.438666,0.00027367,7]
[391325808,1760532646487,-4167.438666,0.00027367,7]
[391325809,1760532646496,-4167.438666,0.00027367,7]
[391325810,1760532646505,-151.0,0.00027367,7]
[391325811,1760532646514,-151.0,0.00027377,2]
[391325812,1760532646524,-153.03462134,0.00027377,2]
[391325813,1760532646533,-393.98498121,0.00027387,2]
[391325814,1760532646543,-151.0,0.00027387,7]
[391325815,1760532646552,-151.0,0.00027387,7]
[391325816,1760532646561,-151.0,0.00027387,7]
[391325817,1760532646570,-151.0,0.00027387,7]
[391325818,1760532646579,-151.0,0.00027387,7]
[391325819,1760532646588,-151.0,0.00027387,7]
[391325820,1760532646597,-1000.0,0.00027397,2]
[391325821,1760532646606,-1000.0,0.00027397,2]
[391325822,1760532646615,-1000.0,0.00027397,2]
[391325823,1760532646623,-1000.0,0.00027397,2]
[391325824,1760532646633,-1094.82523799,0.00027397,2]
[391325825,1760532646642,-337.634217,0.00027397,7]
[391325826,1760532646651,-337.634217,0.00027397,7]
[391325827,1760532646662,-337.634217,0.00027397,7]
[391325828,1760532646673,-337.634217,0.00027397,7]
[391325829,1760532646682,-160.313551,0.00027397,7]
[391325830,1760532646691,-151.0,0.00027397,7]
[391325831,1760532646700,-151.0,0.00027397,7]
[391325832,1760532646709,-151.0,0.00027397,7]
[391325833,1760532646718,-500.0,0.00027397,2]
[391325834,1760532646727,-500.0,0.00027397,2]
[391325835,1760532646736,-500.88368584,0.00027397,2]
[391325836,1760532646745,-2999.0,0.00027397,4]
[391325837,1760532646755,-1548.274226,0.00027397,7]
[391325838,1760532646764,-1548.274226,0.00027397,7]
[391325839,1760532646773,-1548.274226,0.00027397,7]
[391325840,1760532646783,-1548.274226,0.00027397,7]
[391325841,1760532646792,-151.0,0.00027397,7]
[391325842,1760532646801,-151.0,0.00027397,7]
[391325843,1760532646811,-1000.0,0.00027398,5]
[391325844,1760532646820,-2541.61,0.000274,2]
[391325845,1760532646830,-278.42745153,0.000274,2]
[391325846,1760532646840,-500.0,0.0002742,5]
[391325847,1760532646849,-151.0,0.00027432,2]
[391325848,1760532646859,-236.33744248,0.00027487,2]
[391325849,1760532646868,-1000.0,0.00027644,5]
[391325850,1760532646877,-766.04318008,0.00027657,2]
[391325851,1760532646887,-278.42745153,0.000277,2]
[391325852,1760532646896,-4167.438666,0.00027711,30]
[391325853,1760532646905,-4167.438666,0.00027711,30]
[391325854,1760532646914,-4167.438666,0.00027711,30]
[391325855,1760532646923,-4167.438666,0.00027711,30]
[391325856,1760532646933,-151.0,0.00027711,30]
[391325857,1760532646943,-7018.01355627,0.00027711,2]
[391325858,1760532646951,-281.42,0.00027733,15]
[391325859,1760532646960,-187.61,0.00027735,15]
[391325860,1760532646969,-1458.63,0.00027762,2]
[391325861,1760532646978,-1000.0,0.0002781,5]
[391325862,1760532646987,-187.61,0.00027835,15]
[391325863,1760532646997,-2685.8645164,0.00027906,2]
[391325864,1760532647006,-299.5125824,0.00027908,2]
[391325865,1760532647015,-187.62,0.00027935,15]
[391325866,1760532647024,-1500.0,0.00027946,5]
[391325867,1760532647033,-1000.0,0.00027968,5]
[391325868,1760532647042,-151.0,0.00027968,30]
[391325869,1760532647051,-151.0,0.00027968,30]
[391325870,1760532647060,-151.0,0.00027968,30]
[391325871,1760532647069,-163.413348,0.00027968,30]
[391325872,1760532647078,-3000.0,0.00028,8]
[391325873,1760532647088,-393.98498121,0.00028044,2]
[391325874,1760532647097,-151.00000013,0.00028054,30]
[391325875,1760532647106,-151.0,0.00028054,30]
[391325876,1760532647115,-337.634217,0.00028054,30]
[391325877,1760532647124,-337.634217,0.00028054,30]
[391325878,1760532647134,-337.634217,0.00028054,30]
[391325879,1760532647143,-337.634217,0.00028054,30]
[391325880,1760532647153,-151.0,0.00028054,30]
[391325881,1760532647162,-1548.274226,0.00028054,30]
[391325882,1760532647171,-1548.274226,0.00028054,30]
[391325883,1760532647185,-1548.274226,0.00028054,30]
[391325884,1760532647194,-1548.274226,0.00028054,30]
[391325885,1760532647203,-151.0,0.00028054,30]
[391325886,1760532647212,-151.0,0.00028054,30]
[391325887,1760532647221,-1500.0,0.00028192,5]
[391325888,1760532647230,-794.38677775,0.00028205,2]
[391325889,1760532647239,-587.0,0.00028238,2]
[391325890,1760532647248,-1500.0,0.00028358,5]
[391325891,1760532647258,-313.33298982,0.00028457,2]
[391325892,1760532647267,-2001.31810643,0.00028494,5]
[391325893,1760532647276,-151.0,0.00028494,30]
[391325894,1760532647285,-505.02184591,0.00028516,5]
[391325895,1760532647294,-7018.01355627,0.0002868,2]
[391325896,1760532647303,-4167.438666,0.00028681,30]
[391325897,1760532647313,-4167.438666,0.00028681,30]
[391325898,1760532647322,-4167.438666,0.00028681,30]
[391325899,1760532647331,-4167.438666,0.00028681,30]
[391325900,1760532647340,-1271.1656049,0.00028691,2]
[391325901,1760532647349,-1007.1927802,0.0002874,5]
[391325902,1760532647358,-823.77908852,0.00028753,2]
[391325903,1760532647367,-2838.2538327,0.00028756,2]
[391325904,1760532647376,-393.98498121,0.00028757,2]
[391325905,1760532647386,-151.0,0.00028767,30]
[391325906,1760532647395,-151.0,0.00028767,30]
[391325907,1760532647404,-151.0,0.00028767,30]
[391325908,1760532647413,-151.0,0.00028767,30]
[391325909,1760532647422,-2999.0,0.00028767,6]
[391325910,1760532647432,-1548.274226,0.00028767,30]
[391325911,1760532647441,-1548.274226,0.00028767,30]
[391325912,1760532647450,-1548.274226,0.00028767,30]
[391325913,1760532647459,-1548.274226,0.00028767,30]
[391325914,1760532647468,-151.0,0.00028767,30]
[391325915,1760532647478,-274.720304,0.00028767,30]
[391325916,1760532647487,-800.0,0.00028853,7]
[391325917,1760532647496,-2000.0,0.00028906,5]
[391325918,1760532647505,-3000.0,0.00029,9]
[391325919,1760532647514,-2685.8645164,0.00029128,2]
[391325920,1760532647523,-337.634217,0.00029153,30]
[391325921,1760532647532,-337.634217,0.00029153,30]
[391325922,1760532647544,-337.634217,0.00029153,30]
[391325923,1760532647554,-337.634217,0.00029153,30]
[391325924,1760532647563,-854.2589148,0.00029301,2]
[391325925,1760532647573,-151.0,0.00029353,30]
[391325926,1760532647582,-168.0,0.0002941,2]
[391325927,1760532647597,-283.635385,0.00029414,2]
[391325928,1760532647618,-4167.438666,0.00029454,30]
[391325929,1760532647636,-4167.438666,0.00029454,30]
[391325930,1760532647646,-4167.438666,0.00029454,30]
[391325931,1760532647655,-4167.438672,0.00029454,30]
[391325932,1760532647664,-2500.0,0.00029454,5]
[391325933,1760532647673,-633.3000322,0.00029491,2]
[391325934,1760532647682,-981.0,0.00029543,2]
[391325935,1760532647691,-631.0,0.00029543,2]
[391325936,1760532647700,-2161.0,0.00029543,2]
[391325937,1760532647710,-411.0,0.00029543,2]
[391325938,1760532647719,-7018.01355627,0.00029577,2]
[391325939,1760532647728,-800.0,0.00029675,7]
[391325940,1760532647736,-168.0,0.00029757,2]
[391325941,1760532647745,-885.86649465,0.00029849,2]
[391325942,1760532647754,-393.98498121,0.00029896,2]
[391325943,1760532647766,-151.0,0.00029906,30]
[391325944,1760532647783,-260.498696,0.00029906,30]
[391325945,1760532647792,-151.0,0.00029906,30]
[391325946,1760532647802,-151.0,0.00029906,30]
[391325947,1760532647811,-1548.274226,0.00029906,30]
[391325948,1760532647821,-1548.274226,0.00029906,30]
[391325949,1760532647830,-1548.274226,0.00029906,30]
[391325950,1760532647839,-1548.274226,0.00029906,30]
[391325951,1760532647849,-151.0,0.00029906,30]
[391325952,1760532647858,-168.0,0.00029934,2]
[391325953,1760532647867,-402.51317252,0.0002999,30]
[391325954,1760532647876,-184.628592,0.0002999,30]
[391325955,1760532647885,-337.634217,0.0002999,30]
[391325956,1760532647894,-337.634217,0.0002999,30]
[391325957,1760532647903,-337.634217,0.0002999,30]
[391325958,1760532647912,-337.634217,0.0002999,30]
[391325959,1760532647922,-14036.0271125,0.0002999,2]
[391325960,1760532647931,-393.98498121,0.0002999,2]
[391325961,1760532647942,-29827.56835592,0.0003,9]
[391325962,1760532647951,-776.37,0.0003,2]
[391325963,1760532647960,-1807.066,0.0003,10]
[391325964,1760532647969,-3119.1972073,0.0003,7]
[391325965,1760532647979,-627.42722187,0.0003,2]
[391325966,1760532647988,-337.634217,0.0003,30]
[391325967,1760532647997,-337.634217,0.0003,30]
[391325968,1760532648006,-337.634217,0.0003,30]
[391325969,1760532648016,-337.63422113,0.0003,30]
[391325970,1760532648025,-3000.0,0.0003,10]
[391325971,1760532648034,-151.0,0.0003,30]
[391325972,1760532648043,-151.0,0.0003,30]
[391325973,1760532648052,-151.0,0.0003,30]
[391325974,1760532648061,-1548.274226,0.0003,30]
[391325975,1760532648070,-1548.274226,0.0003,30]
[391325976,1760532648079,-1548.274226,0.0003,30]
[391325977,1760532648088,-1548.274233,0.0003,30]
[391325978,1760532648097,-151.0,0.0003,30]
[391325979,1760532648106,-3000.0,0.00030002,5]
[391325980,1760532648115,-174.818,0.00030122,2]
[391325981,1760532648124,-230.645,0.00030122,2]
[391325982,1760532648133,-2999.0,0.00030136,8]
[391325983,1760532648142,-393.98498121,0.0003019,2]
[391325984,1760532648151,-7892.96,0.000302,2]
[391325985,1760532648161,-1260.1736788,0.0003029,2]
[391326048,1760533629116,-200.0,0.00023672,2]